bitfinex/quotes_BTCUSD_20250607
["timestamp","ask_amount","ask_price","bid_price","bid_amount"]
[1749272330894,0.2518308,104960.0,104950.0,1.74613347]
[1749272331105,0.06128202,104960.0,104950.0,1.75566145]
[1749272331331,0.06128202,104960.0,104950.0,1.75566154]
[1749272331550,0.06128202,104960.0,104950.0,1.76518943]
[1749272335049,0.06128202,104960.0,104950.0,1.76518952]
[1749272335050,0.2518308,104960.0,104950.0,1.76518952]
[1749272335778,0.2518308,104960.0,104950.0,1.77471741]
[1749272339293,0.2518308,104960.0,104950.0,1.77424566]
[1749272339682,0.2518308,104960.0,104950.0,1.76471777]
[1749272342032,0.01905459,104960.0,104950.0,1.78377346]
[1749272342245,0.01905459,104960.0,104950.0,1.78377292]
[1749272342889,0.02858202,104960.0,104950.0,1.78377292]
[1749272343915,0.01905459,104960.0,104950.0,1.78377292]
[1749272344522,0.01905423,104960.0,104950.0,1.78377292]
[1749272344846,0.02858094,104960.0,104950.0,1.78377292]
[1749272346593,0.01905369,104960.0,104950.0,1.78377292]
[1749272346797,0.02858085,104960.0,104950.0,1.78377292]
[1749272347845,0.0381081,104960.0,104950.0,1.77424521]
[1749272348444,0.04763544,104960.0,104950.0,1.77424521]
[1749272349152,0.04763544,104960.0,104950.0,1.76471741]
[1749272349442,0.04763544,104960.0,104950.0,1.77424521]
[1749272349672,0.04763544,104960.0,104950.0,1.76471741]
[1749272350083,0.04763544,104960.0,104950.0,1.77424521]
[1749272350470,0.04763616,104960.0,104950.0,1.77424521]
[1749272350915,0.03810918,104960.0,104950.0,1.75518952]
[1749272351134,0.03810918,104960.0,104950.0,1.76471741]
[1749272353625,0.03810918,104960.0,104950.0,1.75518952]
[1749272353837,0.24485796,104960.0,104950.0,1.75518952]
[1749272354446,0.2353308,104960.0,104950.0,1.75518952]
[1749272358430,0.03525459,104960.0,104950.0,1.75518952]
[1749272358936,0.01905459,104960.0,104950.0,1.75518952]
[1749272370412,0.01905459,104960.0,104950.0,1.76471741]
[1749272371070,0.01905459,104960.0,104950.0,1.75518952]
[1749272371254,0.01905459,104960.0,104950.0,1.76471741]
[1749272372768,0.02858202,104960.0,104950.0,1.76471741]
[1749272373278,0.02858202,104960.0,104950.0,1.77424521]
[1749272373279,0.01905459,104960.0,104950.0,1.77424521]
[1749272373499,0.02858202,104960.0,104950.0,1.77424521]
[1749272374572,0.01905423,104960.0,104950.0,1.77424521]
[1749272375922,0.02858157,104960.0,104950.0,1.77424521]
[1749272376641,0.01905423,104960.0,104950.0,1.77424521]
[1749272376852,0.01905423,104960.0,104950.0,1.78377292]
[1749272377560,0.01905369,104960.0,104950.0,1.78377292]
[1749272377702,0.02858094,104960.0,104950.0,1.78377292]
[1749272377924,0.02858085,104960.0,104950.0,1.78377292]
[1749272379591,0.0381081,104960.0,104950.0,1.78377292]
[1749272379790,0.0381081,104960.0,104950.0,1.77424521]
[1749272381115,0.0381081,104960.0,104950.0,1.78377292]
[1749272381326,0.02858085,104960.0,104950.0,1.78377292]
[1749272382042,0.01905369,104960.0,104950.0,1.78377292]
[1749272382255,0.02858085,104960.0,104950.0,1.78377292]
[1749272382682,0.00952671,104960.0,104950.0,1.78377292]
[1749272382883,0.02858058,104960.0,104950.0,1.78377292]
[1749272384886,0.03810783,104960.0,104950.0,1.78377292]
[1749272385022,0.02858058,104960.0,104950.0,1.78377292]
[1749272385236,0.03810783,104960.0,104950.0,1.78377292]
[1749272385814,0.02858058,104960.0,104950.0,1.78377292]
[1749272386054,0.03810783,104960.0,104950.0,1.78377292]
[1749272386473,0.04763517,104960.0,104950.0,1.77424521]
[1749272386680,0.06293589,104960.0,104950.0,1.77424521]
[1749272387411,0.06293589,104960.0,104950.0,1.76471741]
[1749272387610,0.05340909,104960.0,104950.0,1.76471741]
[1749272387911,0.05340909,104960.0,104950.0,1.77424521]
[1749272388220,0.02858166,104960.0,104950.0,1.77424521]
[1749272388438,0.02858166,104960.0,104950.0,1.76471741]
[1749272388841,0.02858166,104960.0,104950.0,1.75518952]
[1749272389055,0.02858166,104960.0,104950.0,1.76471741]
[1749272389993,0.03810909,104960.0,104950.0,1.76471741]
[1749272392793,0.03810909,104960.0,104950.0,1.77424521]
[1749272393958,0.02858166,104960.0,104950.0,1.77424521]
[1749272394585,0.01905432,104960.0,104950.0,1.77424521]
[1749272395791,0.01905432,104960.0,104950.0,1.78377292]
[1749272396005,0.01905432,104960.0,104950.0,1.77424521]
[1749272396216,0.02858112,104960.0,104950.0,1.2148386]
[1749272396434,0.02858112,104960.0,104950.0,1.77424521]
[1749272398833,0.02858112,104960.0,104950.0,1.78377292]
[1749272400535,0.01905387,104960.0,104950.0,1.78377292]
[1749272400928,0.0095268,104960.0,104950.0,1.78377292]
[1749272401153,0.01905387,104960.0,104950.0,1.78377292]
[1749272402300,0.02858085,104960.0,104950.0,1.78377292]
[1749272402444,0.0095268,104960.0,104950.0,1.78377292]
[1749272402662,0.01905387,104960.0,104950.0,1.78377292]
[1749272403523,0.0095268,104960.0,104950.0,1.78377292]
[1749272403732,0.01905378,104960.0,104950.0,1.78377292]
[1749272403942,0.02858076,104960.0,104950.0,1.78377292]
[1749272404156,0.01905369,104960.0,104950.0,1.78377292]
[1749272404566,0.02858067,104960.0,104950.0,1.78377292]
[1749272404733,0.03810774,104960.0,104950.0,1.78377292]
[1749272405354,0.03534774,104960.0,104950.0,1.78377292]
[1749272405949,0.01629369,104960.0,104950.0,1.78377292]
[1749272406150,0.02582076,104960.0,104950.0,1.78377292]
[1749272406705,0.03534801,104960.0,104950.0,1.23389411]
[1749272407015,0.04147411,104970.0,104960.0,0.01905441]
[1749272407230,0.03439955,104970.0,104960.0,1.41766891]
[1749272407460,0.02862571,104970.0,104960.0,0.87493526]
[1749272407821,0.03815205,104970.0,104960.0,0.87493526]
[1749272408497,0.04767849,104970.0,104960.0,0.87493535]
[1749272408720,0.2451834,104970.0,104960.0,0.85588148]
[1749272409420,0.05448369,104970.0,104960.0,0.86540837]
[1749272409624,0.04951022,104970.0,104960.0,0.86540837]
[1749272409831,0.23063609,104970.0,104960.0,0.85588148]
[1749272410048,0.22110993,104970.0,104960.0,0.85588148]
[1749272410848,0.22110993,104970.0,104960.0,0.86540846]
[1749272411262,0.21158359,104970.0,104960.0,0.85588148]
[1749272411468,0.21138046,104970.0,104960.0,0.85588148]
[1749272411890,0.20205715,104970.0,104960.0,0.85588166]
[1749272412296,0.21765715,104970.0,104960.0,0.85588166]
[1749272412510,0.23365715,104970.0,104960.0,0.85588166]
[1749272412936,0.23360155,104970.0,104960.0,0.84635441]
[1749272413151,0.22407502,104970.0,104960.0,0.84635441]
[1749272413371,0.22407502,104970.0,104960.0,0.85588166]
[1749272413594,0.20807502,104970.0,104960.0,0.85588166]
[1749272414226,0.20807502,104970.0,104960.0,0.09639948]
[1749272414441,0.22407502,104970.0,104960.0,0.65580563]
[1749272415287,0.22407502,104970.0,104960.0,0.10592682]
[1749272415515,0.22407502,104970.0,104960.0,0.65580563]
[1749272415737,0.22350987,104970.0,104960.0,0.65580563]
[1749272417490,0.22350987,104970.0,104960.0,0.64627829]
[1749272418499,0.22331241,104970.0,104960.0,0.64627829]
[1749272420355,0.22331241,104970.0,104960.0,0.65580572]
[1749272421017,0.22331241,104970.0,104960.0,0.64627829]
[1749272421454,0.20731241,104970.0,104960.0,0.84635441]
[1749272421658,0.19171241,104970.0,104960.0,0.93455441]
[1749272421866,0.19166249,104970.0,104960.0,0.93455441]
[1749272422073,0.19157852,104970.0,104960.0,0.93455441]
[1749272423262,0.19157852,104970.0,104960.0,0.94408166]
[1749272423849,0.19142078,104970.0,104960.0,0.94408166]
[1749272424235,0.22292078,104970.0,104960.0,0.94408166]
[1749272424885,0.22263821,104970.0,104960.0,0.94408166]
[1749272425097,0.20613821,104970.0,104960.0,0.94408166]
[1749272425707,0.20608261,104970.0,104960.0,0.94408166]
[1749272426447,0.20608261,104970.0,104960.0,1.19120166]
[1749272426652,0.19108261,104970.0,104960.0,1.19120166]
[1749272427487,0.19102701,104970.0,104960.0,1.19120166]
[1749272427916,0.19102701,104970.0,104960.0,1.18167441]
[1749272428556,0.19102701,104970.0,104960.0,0.98159829]
[1749272428977,0.19102701,104970.0,104960.0,0.43171948]
[1749272429193,0.19102701,104970.0,104960.0,0.98159829]
[1749272429808,0.19046072,104970.0,104960.0,0.98159829]
[1749272430208,0.19046072,104970.0,104960.0,0.99112572]
[1749272430830,0.19017815,104970.0,104960.0,0.99112572]
[1749272431461,0.20587815,104970.0,104960.0,0.99112572]
[1749272432498,0.20587815,104970.0,104960.0,0.90292572]
[1749272432781,0.20587815,104970.0,104960.0,1.28044572]
[1749272432976,0.20587815,104970.0,104960.0,0.90292572]
[1749272433126,0.20587815,104970.0,104960.0,1.28044572]
[1749272433903,0.20582255,104970.0,104960.0,1.28044572]
[1749272434535,0.21534908,104970.0,104960.0,1.48052166]
[1749272434735,0.21534908,104970.0,104960.0,1.4709945]
[1749272435532,0.21534908,104970.0,104960.0,1.48052184]
[1749272436388,0.21534908,104970.0,104960.0,1.28044572]
[1749272436594,0.21534908,104970.0,104960.0,1.75508184]
[1749272440279,0.21520837,104970.0,104960.0,1.75508184]
[1749272442277,0.21520837,104970.0,104960.0,1.7455545]
[1749272442885,0.21520837,104970.0,104960.0,1.75508184]
[1749272448675,0.21520837,104970.0,104960.0,1.76460909]
[1749272452607,0.22473462,104970.0,104960.0,1.77413625]
[1749272452812,0.20903462,104970.0,104960.0,1.77413625]
[1749272453033,0.20903462,104970.0,104960.0,1.76460909]
[1749272455463,0.19950837,104970.0,104960.0,1.75508184]
[1749272455669,0.21580837,104970.0,104960.0,1.75508184]
[1749272458017,0.21580837,104970.0,104960.0,1.20520303]
[1749272459251,0.20628184,104970.0,104960.0,1.20520303]
[1749272461345,0.20628184,104970.0,104960.0,0.61807948]
[1749272461560,0.20628184,104970.0,104960.0,0.99547948]
[1749272461782,0.22138184,104970.0,104960.0,0.99547948]
[1749272461984,0.22138184,104970.0,104960.0,1.00500691]
[1749272463523,0.22138184,104970.0,104960.0,0.73044691]
[1749272464879,0.22138184,104970.0,104960.0,0.91146826]
[1749272465058,0.22138184,104970.0,104960.0,0.9209956]
[1749272465215,0.22138184,104970.0,104960.0,0.91146826]
[1749272465807,0.22138184,104970.0,104960.0,0.92099569]
[1749272467936,0.22138184,104970.0,104960.0,0.93052303]
[1749272468162,0.22138184,104970.0,104960.0,1.20508303]
[1749272470754,0.22138184,104970.0,104960.0,1.19555569]
[1749272472134,0.22138184,104970.0,104960.0,1.20508303]
[1749272474258,0.22138184,104970.0,104960.0,1.19555569]
[1749272474673,0.22138184,104970.0,104960.0,1.20508303]
[1749272475198,0.20628184,104970.0,104960.0,1.20508303]
[1749272475626,0.20628184,104970.0,104960.0,0.93052303]
[1749272476511,0.22238184,104970.0,104960.0,0.93052303]
[1749272477068,0.22238184,104970.0,104960.0,0.92099569]
[1749272477635,0.22238184,104970.0,104960.0,0.93052303]
[1749272480599,0.22238184,104970.0,104960.0,0.94005028]
[1749272480805,0.22238184,104970.0,104960.0,0.93052303]
[1749272481310,0.22238184,104970.0,104960.0,0.92099569]
[1749272481478,0.22238184,104970.0,104960.0,0.93052303]
[1749272481828,0.22338184,104970.0,104960.0,0.93052303]
[1749272482027,0.22338184,104970.0,104960.0,0.93152303]
[1749272483364,0.22238184,104970.0,104960.0,0.93152303]
[1749272483573,0.22238184,104970.0,104960.0,0.93252303]
[1749272484955,0.22238184,104970.0,104960.0,0.34551948]
[1749272485175,0.22238184,104970.0,104960.0,0.72279948]
[1749272485405,0.22238184,104970.0,104960.0,0.6264]
[1749272500030,0.22238184,104970.0,104960.0,0.3372]
[1749272500222,0.22238184,104970.0,104960.0,0.62636]
[1749272500431,0.22238184,104970.0,104960.0,0.3372]
[1749272500569,0.22238184,104970.0,104960.0,0.62636]
[1749272501849,0.22238184,104970.0,104960.0,0.24912]
[1749272502052,0.22238184,104970.0,104960.0,0.62636]
[1749272504588,0.22238184,104970.0,104960.0,0.24912]
[1749272504822,0.56238184,104970.0,104960.0,0.62632]
[1749272505866,0.56238184,104970.0,104960.0,0.62532]
[1749272506078,0.56238184,104970.0,104960.0,0.62436]
[1749272506288,0.56338184,104970.0,104960.0,0.62436]
[1749272506495,0.56338184,104970.0,104960.0,0.24712]
[1749272506696,0.56338184,104970.0,104960.0,0.62436]
[1749272509611,4.47257984,104970.0,104960.0,0.62436]
[1749272513015,4.47257984,104970.0,104960.0,0.24712]
[1749272513217,4.47257984,104970.0,104960.0,0.62436]
[1749272515455,4.47257984,104970.0,104960.0,0.24712]
[1749272515660,4.48712069,104970.0,104960.0,0.62436]
[1749272524611,4.48712069,104970.0,104960.0,0.3352]
[1749272524816,4.48712069,104970.0,104960.0,0.62432]
[1749272527558,4.48712069,104970.0,104960.0,0.3352]
[1749272527760,4.48712069,104970.0,104960.0,0.62432]
[1749272530562,0.57792269,104970.0,104960.0,0.62432]
[1749272530859,4.48712069,104970.0,104960.0,0.62432]
[1749272536773,0.57792269,104970.0,104960.0,0.62432]
[1749272536980,4.48712069,104970.0,104960.0,0.62432]
[1749272542416,4.50999609,104970.0,104960.0,0.62432]
[1749272548181,0.60079809,104970.0,104960.0,0.62432]
[1749272548398,4.50999609,104970.0,104960.0,0.62432]
[1749272549186,0.60079809,104970.0,104960.0,0.62432]
[1749272549379,4.50999609,104970.0,104960.0,0.62432]
[1749272552644,4.51000123,104970.0,104960.0,0.62432]
[1749272553393,0.60080323,104970.0,104960.0,0.62432]
[1749272553598,4.51000123,104970.0,104960.0,0.62432]
[1749272557562,0.60080323,104970.0,104960.0,0.62432]
[1749272557777,4.51000123,104970.0,104960.0,0.62432]
[1749272561112,0.60080323,104970.0,104960.0,0.62432]
[1749272561294,4.51000123,104970.0,104960.0,0.62432]
[1749272563261,0.60080323,104970.0,104960.0,0.62432]
[1749272563414,4.51000123,104970.0,104960.0,0.62432]
[1749272564272,0.60080323,104970.0,104960.0,0.62432]
[1749272564484,4.51000143,104970.0,104960.0,0.62432]
[1749272565317,0.60080343,104970.0,104960.0,0.62432]
[1749272565525,4.51000143,104970.0,104960.0,0.62432]
[1749272566343,4.46306058,104970.0,104960.0,0.65592]
[1749272566538,4.44017984,104970.0,104960.0,0.65592]
[1749272575662,4.44017984,104970.0,104960.0,0.63992]
[1749272579104,4.44017984,104970.0,104960.0,0.62432]
[1749272597390,4.44017984,104970.0,104960.0,0.6242]
[1749272601521,4.4372858,104970.0,104960.0,0.6242]
[1749272604328,4.4691858,104970.0,104960.0,0.62416]
[1749272604544,4.4691858,104970.0,104960.0,0.62404]
[1749272604783,4.48372665,104970.0,104960.0,0.62404]
[1749272608229,0.21915114,104950.0,104940.0,0.51549744]
[1749272608440,0.21915114,104950.0,104940.0,0.67237692]
[1749272608905,0.21915114,104950.0,104940.0,0.66284767]
[1749272609328,0.21915114,104950.0,104940.0,0.95180767]
[1749272609533,0.21915114,104950.0,104940.0,0.95380767]
[1749272610177,0.20962334,104950.0,104940.0,0.95680767]
[1749272610711,0.20962334,104950.0,104940.0,0.76622259]
[1749272611483,0.20962334,104950.0,104940.0,0.96633693]
[1749272611693,0.20962334,104950.0,104940.0,0.95680768]
[1749272612015,0.21926748,104950.0,104940.0,0.95680768]
[1749272613469,0.21926748,104950.0,104940.0,0.96633693]
[1749272613677,0.21926748,104950.0,104940.0,0.97586609]
[1749272614786,0.21926748,104950.0,104940.0,0.96633693]
[1749272614988,0.20973941,104950.0,104940.0,0.96633693]
[1749272615393,0.20973941,104950.0,104940.0,0.76622259]
[1749272615693,0.20021107,104950.0,104940.0,0.76622259]
[1749272616678,0.20021107,104950.0,104940.0,0.77575184]
[1749272617496,0.20021107,104950.0,104940.0,0.76622259]
[1749272618034,0.20021107,104950.0,104940.0,0.77575184]
[1749272618235,0.20021107,104950.0,104940.0,0.76622259]
[1749272618681,0.20021107,104950.0,104940.0,0.77575184]
[1749272619301,0.20021107,104950.0,104940.0,0.96633693]
[1749272619606,0.20021107,104950.0,104940.0,0.97586609]
[1749272620103,0.20021107,104950.0,104940.0,0.98539507]
[1749272622847,0.20021107,104950.0,104940.0,0.97586609]
[1749272623049,0.20021107,104950.0,104940.0,0.96633693]
[1749272623455,0.20021107,104950.0,104940.0,0.97586609]
[1749272623675,0.20021107,104950.0,104940.0,0.98539507]
[1749272624261,0.20021107,104950.0,104940.0,0.98395046]
[1749272624467,0.19056693,104950.0,104940.0,0.98395046]
[1749272624669,0.20962334,104950.0,104940.0,0.98395046]
[1749272625913,0.21910891,104950.0,104940.0,0.98395046]
[1749272626197,0.21910891,104950.0,104940.0,0.99347935]
[1749272626819,0.21910891,104950.0,104940.0,0.98395046]
[1749272633075,0.21910891,104950.0,104940.0,0.99347935]
[1749272634924,0.01905641,104950.0,104940.0,1.00300806]
[1749272635396,0.20962334,104950.0,104940.0,0.99347935]
[1749272635601,0.20962334,104950.0,104940.0,1.00300815]
[1749272636854,0.20962334,104950.0,104940.0,0.98395046]
[1749272637394,0.20962334,104950.0,104940.0,0.99347935]
[1749272638333,0.20962334,104950.0,104940.0,1.00300815]
[1749272638767,0.20962334,104950.0,104940.0,1.55288696]
[1749272639434,0.20962334,104950.0,104940.0,1.54335816]
[1749272639645,0.20962334,104950.0,104940.0,1.55288696]
[1749272640166,0.20962334,104950.0,104940.0,1.54335816]
[1749272642814,0.20962334,104950.0,104940.0,0.99347935]
[1749272643463,0.20962334,104950.0,104940.0,0.98395046]
[1749272643640,0.20009527,104950.0,104940.0,0.98395046]
[1749272645066,0.20009527,104950.0,104940.0,0.96845046]
[1749272645207,0.20009527,104950.0,104940.0,0.95892148]
[1749272645416,0.20009527,104950.0,104940.0,0.96845055]
[1749272647547,0.20009527,104950.0,104940.0,0.97797953]
[1749272649640,0.20009527,104950.0,104940.0,0.74340723]
[1749272649851,0.19056693,104950.0,104940.0,0.75293639]
[1749272650057,0.19056693,104950.0,104940.0,0.95305055]
[1749272650882,0.19056693,104950.0,104940.0,0.96257953]
[1749272654672,0.19056693,104950.0,104940.0,0.95305055]
[1749272659093,0.19056693,104950.0,104940.0,0.96257953]
[1749272660101,0.19056693,104950.0,104940.0,0.56660148]
[1749272660219,0.19056693,104950.0,104940.0,0.94332148]
[1749272661066,0.19056693,104950.0,104940.0,0.93379223]
[1749272663800,0.20586693,104950.0,104940.0,0.93379223]
[1749272664200,0.20586693,104950.0,104940.0,0.93375223]
[1749272664770,0.20586693,104950.0,104940.0,0.73363798]
[1749272665198,0.20586693,104950.0,104940.0,0.74316723]
[1749272666540,0.20586693,104950.0,104940.0,0.75269639]
[1749272666995,0.20586693,104950.0,104940.0,0.73363798]
[1749272669037,0.20586693,104950.0,104940.0,0.74316723]
[1749272669632,0.20586693,104950.0,104940.0,0.93375232]
[1749272671980,0.22236693,104950.0,104940.0,0.73363798]
[1749272673258,0.22236693,104950.0,104940.0,0.73163798]
[1749272673482,0.22236693,104950.0,104940.0,0.73916723]
[1749272673808,0.22236693,104950.0,104940.0,0.74016723]
[1749272675895,0.22236693,104950.0,104940.0,0.79016723]
[1749272676216,0.22236693,104950.0,104940.0,0.78063798]
[1749272683299,0.22236693,104950.0,104940.0,0.79016723]
[1749272689043,0.22236693,104950.0,104940.0,0.78063798]
[1749272689546,0.22236693,104950.0,104940.0,0.79016723]
[1749272690471,0.22236693,104950.0,104940.0,0.99028148]
[1749272691516,0.22236693,104950.0,104940.0,0.99981055]
[1749272691695,0.22236693,104950.0,104940.0,0.79969639]
[1749272692211,0.22236693,104950.0,104940.0,0.79016723]
[1749272693815,0.22236693,104950.0,104940.0,0.78063798]
[1749272700912,0.20586693,104950.0,104940.0,0.78063798]
[1749272702505,0.19056693,104950.0,104940.0,0.97122307]
[1749272702724,0.19056693,104950.0,104940.0,0.98075214]
[1749272702940,0.19056693,104950.0,104940.0,1.53063095]
[1749272703926,0.19056693,104950.0,104940.0,1.53063104]
[1749272705219,0.20009518,104950.0,104940.0,1.54016011]
[1749272705790,0.20009518,104950.0,104940.0,0.9902813]
[1749272707804,0.20009518,104950.0,104940.0,0.98075223]
[1749272708004,0.20009518,104950.0,104940.0,0.99028121]
[1749272710010,0.20009518,104950.0,104940.0,0.98075223]
[1749272710802,0.20009518,104950.0,104940.0,0.9902813]
[1749272711420,0.20009518,104950.0,104940.0,0.99981028]
[1749272712238,0.20009518,104950.0,104940.0,0.9902813]
[1749272714210,0.20009518,104950.0,104940.0,0.98075223]
[1749272721186,0.20009518,104950.0,104940.0,0.97122307]
[1749272721392,0.20009518,104950.0,104940.0,0.99028139]
[1749272723295,0.20009518,104950.0,104940.0,0.98075232]
[1749272723551,0.20009518,104950.0,104940.0,0.99028148]
[1749272723966,0.21629518,104950.0,104940.0,0.99028148]
[1749272726865,0.21629518,104950.0,104940.0,0.99981055]
[1749272727160,0.20009518,104950.0,104940.0,0.99981055]
[1749272734360,0.20009518,104950.0,104940.0,1.00933953]
[1749272735113,0.20009518,104950.0,104940.0,1.01886842]
[1749272735836,0.20009518,104950.0,104940.0,1.00933953]
[1749272736737,0.20009518,104950.0,104940.0,0.99028148]
[1749272737802,0.20009518,104950.0,104940.0,0.99981046]
[1749272741367,0.20009518,104950.0,104940.0,0.99028148]
[1749272741575,0.20009518,104950.0,104940.0,0.99981055]
[1749272741765,0.20009518,104950.0,104940.0,1.00933953]
[1749272742485,0.20009518,104950.0,104940.0,0.99981055]
[1749272743634,0.20009518,104950.0,104940.0,0.99028148]
[1749272743845,0.20009518,104950.0,104940.0,0.99981055]
[1749272744137,0.19056693,104950.0,104940.0,0.99028148]
[1749272744384,0.20646693,104950.0,104940.0,0.99028148]
[1749272746024,0.20646693,104950.0,104940.0,0.70148148]
[1749272746203,0.20646693,104950.0,104940.0,0.99965055]
[1749272746796,0.20646693,104950.0,104940.0,0.98059232]
[1749272746995,0.20646693,104950.0,104940.0,0.99012148]
[1749272747451,0.20646693,104950.0,104940.0,0.99965055]
[1749272748737,0.20646693,104950.0,104940.0,0.99012148]
[1749272749060,0.20646693,104950.0,104940.0,0.98059232]
[1749272749762,0.20646693,104950.0,104940.0,0.99012148]
[1749272749971,0.22186693,104950.0,104940.0,0.98055232]
[1749272750852,0.22186693,104950.0,104940.0,0.78043798]
[1749272751064,0.22186693,104950.0,104940.0,0.78031798]
[1749272758661,0.22186693,104950.0,104940.0,0.49171798]
[1749272758872,4.47106493,104950.0,104940.0,0.6839585]
[1749272759074,4.52860797,104950.0,104940.0,0.6839585]
[1749272759395,4.55147908,104950.0,104940.0,0.6839585]
[1749272759599,4.52257904,104950.0,104940.0,0.3065985]
[1749272759800,4.53711989,104950.0,104940.0,0.6829585]
[1749272759995,4.53711989,104950.0,104940.0,0.3065985]
[1749272760201,4.53711989,104950.0,104940.0,0.6819585]
[1749272760789,0.62792189,104950.0,104940.0,0.6819585]
[1749272760988,4.53711989,104950.0,104940.0,0.6819585]
[1749272761574,4.51724878,104950.0,104940.0,0.6819585]
[1749272762159,4.51624878,104950.0,104940.0,0.6819585]
[1749272762361,4.51724878,104950.0,104940.0,0.6819585]
[1749272763847,0.60805078,104950.0,104940.0,0.6819585]
[1749272764057,4.51724878,104950.0,104940.0,0.6819585]
[1749272766995,0.60805078,104950.0,104940.0,0.6819585]
[1749272767203,4.51724878,104950.0,104940.0,0.6819585]
[1749272783197,4.51724878,104950.0,104940.0,0.3055985]
[1749272783409,4.61364826,104950.0,104940.0,0.6819185]
[1749272784242,4.63648898,104950.0,104940.0,0.6819185]
[1749272784448,4.63648898,104950.0,104940.0,0.3055985]
[1749272784664,4.63648898,104950.0,104940.0,0.6819185]
[1749272784884,4.63648898,104950.0,104940.0,0.3055985]
[1749272785095,4.63648898,104950.0,104940.0,0.6819185]
[1749272785482,4.63648898,104950.0,104940.0,0.3055985]
[1749272785894,4.63648898,104950.0,104940.0,0.6819185]
[1749272788000,4.63648898,104950.0,104940.0,0.3055985]
[1749272788205,4.63648898,104950.0,104940.0,0.6819185]
[1749272788417,4.63648898,104950.0,104940.0,0.3055985]
[1749272788628,4.63648898,104950.0,104940.0,0.6819185]
[1749272789391,4.66503988,104950.0,104940.0,0.6819185]
[1749272790858,4.66503988,104950.0,104940.0,0.3933185]
[1749272791151,4.66503988,104950.0,104940.0,0.6819185]
[1749272791333,4.66503988,104950.0,104940.0,0.3055985]
[1749272791533,4.66503988,104950.0,104940.0,0.6819585]
[1749272794554,4.63648898,104950.0,104940.0,0.6819585]
[1749272794758,4.73288846,104950.0,104940.0,0.3055985]
[1749272794964,4.66503988,104950.0,104940.0,0.6819585]
[1749272796633,0.75584188,104950.0,104940.0,0.6819585]
[1749272796840,4.66503988,104950.0,104940.0,0.6819585]
[1749272797322,4.66494194,104950.0,104940.0,0.6819585]
[1749272799505,4.63639104,104950.0,104940.0,0.6819585]
[1749272802759,0.82759304,104950.0,104940.0,0.6819585]
[1749272802956,4.63639104,104950.0,104940.0,0.6819585]
[1749272804783,0.72719304,104950.0,104940.0,0.6819585]
[1749272804912,4.63639104,104950.0,104940.0,0.6819585]
[1749272805311,4.66494194,104950.0,104940.0,0.6819585]
[1749272808968,0.75574394,104950.0,104940.0,0.6819585]
[1749272809125,4.66494194,104950.0,104940.0,0.6819585]
[1749272809698,0.19063959,104910.0,104900.0,0.0163]
[1749272809927,0.19063959,104910.0,104900.0,0.63986]
[1749272809928,4.10221893,104910.0,104900.0,0.63986]
[1749272810136,4.43983759,104910.0,104900.0,0.63986]
[1749272810345,4.43983759,104910.0,104900.0,0.65586]
[1749272810561,4.45437844,104910.0,104900.0,0.2795]
[1749272810763,4.45437844,104910.0,104900.0,0.62356]
[1749272810973,4.45437844,104910.0,104900.0,0.62360786]
[1749272811213,4.45437844,104910.0,104900.0,0.62460786]
[1749272811638,4.45437844,104910.0,104900.0,0.62360786]
[1749272812048,0.54518044,104910.0,104900.0,0.62360786]
[1749272812268,4.45437844,104910.0,104900.0,0.62360786]
[1749272812478,4.46404192,104910.0,104900.0,0.62360786]
[1749272814118,4.49274565,104910.0,104900.0,0.62360786]
[1749272816864,4.49274565,104910.0,104900.0,0.33500786]
[1749272817012,4.49274565,104910.0,104900.0,0.62360786]
[1749272818757,4.49274565,104910.0,104900.0,0.63900786]
[1749272819189,4.4782048,104910.0,104900.0,0.65480786]
[1749272819405,4.44950107,104910.0,104900.0,0.65480786]
[1749272819592,0.53063707,104920.0,104910.0,0.22183959]
[1749272819759,4.43983507,104920.0,104910.0,0.0312]
[1749272820950,0.19063707,104920.0,104910.0,0.23137147]
[1749272821219,0.19063707,104920.0,104910.0,0.24090317]
[1749272821419,0.19263707,104920.0,104910.0,0.23137147]
[1749272821627,0.19263707,104920.0,104910.0,0.24090326]
[1749272822063,0.19263707,104920.0,104910.0,0.22183959]
[1749272822955,0.19263707,104920.0,104910.0,0.23137156]
[1749272823250,0.19263707,104920.0,104910.0,0.24090344]
[1749272823807,0.19263707,104920.0,104910.0,0.23137156]
[1749272824441,0.19263707,104920.0,104910.0,0.0312]
[1749272837877,0.19263707,104920.0,104910.0,0.11892]
[1749272842444,0.19263707,104920.0,104910.0,0.36616]
[1749272847270,0.19263707,104920.0,104910.0,0.35036]
[1749272850687,0.19263707,104920.0,104910.0,0.33496]
[1749272861420,0.19263707,104920.0,104900.0,0.52039028]
[1749272861675,0.20017156,104910.0,104900.0,0.33641041]
[1749272861881,0.20017156,104910.0,104900.0,0.67133041]
[1749272862717,0.20017156,104910.0,104900.0,0.95985041]
[1749272868082,0.20970326,104910.0,104900.0,0.95985041]
[1749272868920,0.20970326,104910.0,104900.0,0.34363948]
[1749272869132,0.20970326,104910.0,104900.0,0.71983948]
[1749272872866,0.20017156,104910.0,104900.0,0.62344]
[1749272874986,0.20017156,104910.0,104900.0,0.81409776]
[1749272875503,0.20017156,104910.0,104900.0,0.62344]
[1749272884127,0.20017156,104910.0,104900.0,0.82363064]
[1749272884332,0.20017156,104910.0,104900.0,0.62344]
[1749272884683,0.23227156,104910.0,104900.0,0.62336]
[1749272889383,0.23227156,104910.0,104900.0,0.24724]
[1749272889596,0.23227156,104910.0,104900.0,0.62336]
[1749272898338,4.14146956,104910.0,104900.0,0.62336]
[1749272898554,4.48146956,104910.0,104900.0,0.62336]
[1749272899193,4.48146956,104910.0,104900.0,0.33488]
[1749272899398,4.48146956,104910.0,104900.0,0.62336]
[1749272900473,4.49601041,104910.0,104900.0,0.24724]
[1749272900720,4.49601041,104910.0,104900.0,0.33492]
[1749272900933,4.54271662,104910.0,104900.0,0.6234]
[1749272901146,4.50271113,104910.0,104900.0,0.6234]
[1749272901808,4.50271126,104910.0,104900.0,0.6234]
[1749272902061,4.49601041,104910.0,104900.0,0.6234]
[1749272902274,4.50271126,104910.0,104900.0,0.6234]
[1749272903125,4.50271109,104910.0,104900.0,0.6234]
[1749272903348,4.50271109,104910.0,104900.0,0.62336]
[1749272903558,4.50271109,104910.0,104900.0,0.33488]
[1749272903775,4.49601041,104910.0,104900.0,0.62336]
[1749272903983,4.50271114,104910.0,104900.0,0.24724]
[1749272904202,4.50271114,104910.0,104900.0,0.62336]
[1749272904646,4.50270631,104910.0,104900.0,0.62336]
[1749272905313,4.50270632,104910.0,104900.0,0.62336]
[1749272905535,4.49601041,104910.0,104900.0,0.62336]
[1749272905963,4.50270632,104910.0,104900.0,0.6322846]
[1749272906582,4.49601041,104910.0,104900.0,0.6322846]
[1749272906833,4.49601041,104910.0,104900.0,0.62336]
[1749272911162,0.58681241,104910.0,104900.0,0.62336]
[1749272911369,4.49601041,104910.0,104900.0,0.62336]
[1749272912200,0.58681241,104910.0,104900.0,0.62336]
[1749272912409,4.49601041,104910.0,104900.0,0.62336]